fUST/lending_fUST_20250718
["ID","MTS","AMOUNT","RATE_DAILY","PERIOD"]
[372831792,1752774656181,-723.58,0.00019041,2]
[372831794,1752774656191,-806.09,0.00019041,2]
[372831796,1752774656200,-460.0,0.00019041,2]
[372831798,1752774656210,-1682.78,0.00019041,2]
[372831800,1752774656219,-666.47,0.00019041,2]
[372831802,1752774656228,-306.0,0.00019041,2]
[372831804,1752774656238,-167.031546,0.00019068,2]
[372831806,1752774656247,-167.031546,0.00019068,2]
[372831808,1752774656257,-1072.168496,0.00019068,2]
[372831810,1752774656266,-1072.168496,0.00019068,2]
[372831812,1752774656276,-429.2412091,0.00019068,2]
[372831814,1752774656285,-429.2412091,0.00019068,2]
[372831816,1752774656294,-429.2412091,0.00019068,2]
[372831817,1752774656303,-429.2412091,0.00019068,2]
[372831820,1752774656313,-429.2412091,0.00019068,2]
[372831821,1752774656322,-429.2412091,0.00019068,2]
[372831823,1752774656331,-429.2412091,0.00019068,2]
[372831825,1752774656341,-429.2412091,0.00019068,2]
[372831828,1752774656350,-429.2412091,0.00019068,2]
[372831829,1752774656361,-429.2412091,0.00019068,2]
[372831831,1752774656370,-429.2412091,0.00019068,2]
[372831833,1752774656380,-429.2412091,0.00019068,2]
[372831835,1752774656389,-429.2412091,0.00019068,2]
[372831837,1752774656399,-429.2412091,0.00019068,2]
[372831839,1752774656409,-195.4500701,0.00019068,2]
[372831841,1752774656418,-360.0,0.00019117,2]
[372831843,1752774656427,-460.0,0.00019141,2]
[372831845,1752774656436,-460.0,0.00019141,2]
[372831847,1752774656445,-460.0,0.00019141,2]
[372831849,1752774656454,-151.0,0.00019141,2]
[372831851,1752774656464,-151.0,0.00019141,2]
[372831853,1752774656478,-151.0,0.00019141,2]
[372831855,1752774656486,-460.0,0.00019141,2]
[372831857,1752774656495,-666.0,0.00019178,2]
[372831859,1752774656506,-151.0,0.00019178,7]
[372831861,1752774656515,-151.0,0.00019178,7]
[372831863,1752774656524,-151.0,0.00019178,7]
[372831865,1752774656533,-151.0,0.00019178,7]
[372831867,1752774656544,-151.0,0.00019178,7]
[372831869,1752774656553,-151.0,0.00019178,7]
[372831871,1752774656562,-151.0,0.00019178,7]
[372831873,1752774656571,-151.0,0.00019178,7]
[372831875,1752774656581,-164.267142,0.00019178,7]
[372831877,1752774656590,-677.672489,0.00019178,2]
[372831879,1752774656599,-2918.49651356,0.00019208,2]
[372831881,1752774656609,-182.0,0.000193,2]
[372831883,1752774656619,-479.03,0.00019315,2]
[372831885,1752774656628,-151.0,0.00019315,2]
[372831887,1752774656637,-151.0,0.00019315,2]
[372831889,1752774656648,-1094.9,0.00019315,2]
[372831891,1752774656658,-460.0,0.00019315,2]
[372831893,1752774656667,-314.63,0.00019315,2]
[372831894,1752774656677,-508.86,0.00019315,2]
[372831896,1752774656686,-1962.81,0.00019315,2]
[372831898,1752774656696,-1170.98,0.00019315,2]
[372831900,1752774656705,-1549.78,0.00019315,2]
[372831902,1752774656715,-460.0,0.00019315,2]
[372831905,1752774656725,-460.0,0.00019315,2]
[372831907,1752774656735,-691.92,0.00019315,2]
[372831909,1752774656745,-1202.44,0.00019315,2]
[372831910,1752774656754,-1072.3,0.00019315,2]
[372831912,1752774656764,-662.88,0.00019315,2]
[372831914,1752774656773,-474.81030526,0.00019315,2]
[372831916,1752774656782,-742.34,0.00019315,2]
[372831918,1752774656792,-2122.81,0.00019315,2]
[372831920,1752774656801,-2313.94,0.00019315,2]
[372831922,1752774656810,-460.0,0.00019315,2]
[372831924,1752774656820,-760.96,0.00019315,2]
[372831926,1752774656830,-723.58,0.00019315,2]
[372831928,1752774656839,-806.09,0.00019315,2]
[372831930,1752774656848,-460.0,0.00019315,2]
[372831932,1752774656857,-344.254796,0.00019315,2]
[372831934,1752774656867,-1682.78,0.00019315,2]
[372831936,1752774656876,-666.47,0.00019315,2]
[372831938,1752774656885,-344.254796,0.00019315,2]
[372831940,1752774656894,-233.02354,0.00019315,2]
[372831942,1752774656906,-53133.69497567,0.00019329,2]
[372831944,1752774656915,-1097.51,0.00019368,2]
[372831946,1752774656924,-178.336,0.00019371,2]
[372831948,1752774656933,-182.0,0.00019382,2]
[372831950,1752774656943,-460.0,0.00019415,2]
[372831952,1752774656952,-460.0,0.00019415,2]
[372831954,1752774656961,-460.0,0.00019415,2]
[372831956,1752774656970,-460.0,0.00019415,2]
[372831958,1752774656979,-517.09736448,0.00019419,2]
[372831960,1752774656988,-182.0,0.00019456,2]
[372831962,1752774656997,-182.0,0.00019459,2]
[372831964,1752774657006,-3662.61970837,0.00019483,2]
[372831966,1752774657015,-178.0508326,0.00019486,2]
[372831968,1752774657025,-153.0,0.00019487,2]
[372831970,1752774657034,-153.0,0.00019487,2]
[372831972,1752774657043,-153.0,0.00019487,2]
[372831974,1752774657052,-153.0,0.00019487,2]
[372831976,1752774657061,-250.0,0.00019496,2]
[372831978,1752774657070,-2918.49651357,0.00019501,2]
[372831980,1752774657079,-3777.10588644,0.00019586,2]
[372831982,1752774657089,-479.03,0.00019589,2]
[372831984,1752774657098,-179.623348,0.00019589,2]
[372831985,1752774657106,-151.0,0.00019589,2]
[372831987,1752774657116,-157.972047,0.00019589,2]
[372831989,1752774657125,-167.263366,0.00019589,2]
[372831991,1752774657135,-157.972047,0.00019589,2]
[372831993,1752774657144,-167.263366,0.00019589,2]
[372831995,1752774657155,-151.0,0.00019589,2]
[372831997,1752774657164,-151.0,0.00019589,2]
[372831999,1752774657174,-151.0,0.00019589,2]
[372832001,1752774657183,-360.306224,0.00019589,2]
[372832003,1752774657192,-360.306224,0.00019589,2]
[372832005,1752774657201,-1094.9,0.00019589,2]
[372832007,1752774657210,-347.05,0.00019589,2]
[372832009,1752774657219,-508.86,0.00019589,2]
[372832011,1752774657228,-1962.81,0.00019589,2]
[372832013,1752774657237,-1170.98,0.00019589,2]
[372832015,1752774657246,-1549.78,0.00019589,2]
[372832017,1752774657256,-460.0,0.00019589,2]
[372832019,1752774657265,-460.0,0.00019589,2]
[372832021,1752774657275,-691.92,0.00019589,2]
[372832023,1752774657285,-1202.44,0.00019589,2]
[372832025,1752774657294,-1072.3,0.00019589,2]
[372832027,1752774657303,-662.88,0.00019589,2]
[372832029,1752774657312,-742.34,0.00019589,2]
[372832031,1752774657321,-151.0,0.00019589,2]
[372832033,1752774657330,-2122.81,0.00019589,2]
[372832035,1752774657339,-2313.94,0.00019589,2]
[372832037,1752774657348,-597.57671776,0.00019589,2]
[372832039,1752774657357,-760.96,0.00019589,2]
[372832041,1752774657366,-723.58,0.00019589,2]
[372832053,1752774657466,-806.09,0.00019589,2]
[372832055,1752774657486,-460.0,0.00019589,2]
[372832057,1752774657496,-1682.78,0.00019589,2]
[372832059,1752774657506,-666.47,0.00019589,2]
[372832061,1752774657517,-168.0,0.00019632,2]
[372832063,1752774657526,-151.0,0.00019647,2]
[372832065,1752774657535,-460.0,0.00019665,2]
[372832067,1752774657546,-273.198261,0.00019679,2]
[372832069,1752774657555,-460.0,0.00019689,2]
[372832071,1752774657564,-460.0,0.00019689,2]
[372832073,1752774657574,-151.0,0.00019689,2]
[372832075,1752774657583,-151.0,0.00019689,2]
[372832077,1752774657593,-460.0,0.00019689,2]
[372832079,1752774657603,-151.0,0.00019689,2]
[372832081,1752774657612,-211.767642,0.00019689,2]
[372832083,1752774657621,-211.767642,0.00019689,2]
[372832085,1752774657630,-151.0,0.00019689,2]
[372832088,1752774657640,-151.0,0.00019689,2]
[372832090,1752774657652,-460.0,0.00019689,2]
[372832092,1752774657661,-168.18647811,0.0001969,2]
[372832094,1752774657670,-151.0,0.0001969,2]
[372832096,1752774657680,-198.41415332,0.0001969,2]
[372832098,1752774657689,-151.0,0.0001969,2]
[372832100,1752774657698,-151.0,0.0001969,2]
[372832102,1752774657707,-247.18468876,0.0001969,2]
[372832104,1752774657717,-877.0,0.0001969,2]
[372832106,1752774657726,-500.0,0.0001969,2]
[372832108,1752774657735,-728.0,0.0001969,2]
[372832110,1752774657745,-184.65009936,0.0001969,2]
[372832112,1752774657754,-600.0,0.00019722,2]
[372832114,1752774657763,-182.0,0.00019727,2]
[372832116,1752774657772,-587.0,0.00019778,2]
[372832118,1752774657781,-223.0315306,0.00019778,2]
[372832120,1752774657791,-182.0,0.00019842,2]
[372832122,1752774657801,-1153.442717,0.00019844,2]
[372832124,1752774657811,-323.35842337,0.00019844,2]
[372832126,1752774657820,-479.03,0.00019863,2]
[372832128,1752774657830,-167.031546,0.00019863,2]
[372832130,1752774657840,-167.031546,0.00019863,2]
[372832132,1752774657850,-1072.168496,0.00019863,2]
[372832134,1752774657859,-1072.168496,0.00019863,2]
[372832136,1752774657869,-1094.9,0.00019863,2]
[372832138,1752774657879,-508.86,0.00019863,2]
[372832140,1752774657889,-1962.81,0.00019863,2]
[372832142,1752774657900,-1170.98,0.00019863,2]
[372832144,1752774657910,-1549.78,0.00019863,2]
[372832146,1752774657919,-425.46352346,0.00019863,2]
[372832148,1752774657929,-460.0,0.00019863,2]
[372832150,1752774657939,-691.92,0.00019863,2]
[372832152,1752774657949,-1202.44,0.00019863,2]
[372832154,1752774657958,-1072.3,0.00019863,2]
[372832156,1752774657968,-662.88,0.00019863,2]
[372832158,1752774657977,-742.34,0.00019863,2]
[372832159,1752774657987,-2122.81,0.00019863,2]
[372832161,1752774657997,-2313.94,0.00019863,2]
[372832164,1752774658007,-760.96,0.00019863,2]
[372832166,1752774658016,-723.58,0.00019863,2]
[372832167,1752774658026,-806.09,0.00019863,2]
[372832169,1752774658035,-460.0,0.00019863,2]
[372832172,1752774658045,-1682.78,0.00019863,2]
[372832173,1752774658054,-666.47,0.00019863,2]
[372832176,1752774658063,-234.0,0.00019878,2]
[372832177,1752774658073,-182.0,0.00019942,2]
[372832179,1752774658082,-416.95,0.00019963,2]
[372832181,1752774658091,-460.0,0.00019963,2]
[372832183,1752774658100,-460.0,0.00019963,2]
[372832185,1752774658109,-152.132934,0.00019963,2]
[372832187,1752774658118,-151.0,0.00019963,2]
[372832189,1752774658127,-151.0,0.00019963,2]
[372832191,1752774658137,-460.0,0.00019963,2]
[372832192,1752774658146,-151.0,0.00019964,2]
[372832193,1752774658157,-877.0,0.00019964,2]
[372832194,1752774658166,-500.0,0.00019964,2]
[372832195,1752774658176,-728.0,0.00019964,2]
[372832196,1752774658185,-1151.0,0.00019975,2]
[372832197,1752774658195,-234.0,0.0001999,2]
[372832198,1752774658204,-1000.0,0.0002,2]
[372832199,1752774658213,-696.81,0.0002,2]
[372832201,1752774658222,-202.088154,0.0002,2]
[372832203,1752774658231,-151.0,0.0002,2]
[372832205,1752774658241,-344.254796,0.0002,2]
[372832207,1752774658249,-344.254796,0.0002,2]
[372832209,1752774658258,-233.02354,0.0002,2]
[372832211,1752774658267,-188.832589,0.00020004,2]
[372832213,1752774658276,-188.832589,0.00020004,2]
[372832215,1752774658286,-465.642075,0.00020004,2]
[372832216,1752774658295,-465.642075,0.00020004,2]
[372832217,1752774658304,-215.014591,0.00020004,2]
[372832218,1752774658313,-215.014591,0.00020004,2]
[372832219,1752774658323,-182.329208,0.00020004,2]
[372832220,1752774658331,-182.329208,0.00020004,2]
[372832221,1752774658340,-306.0,0.0002009,2]
[372832222,1752774658349,-500.0,0.00020095,2]
[372832223,1752774658358,-234.0,0.00020106,2]
[372832224,1752774658367,-182.0,0.00020126,2]
[372832225,1752774658376,-479.03,0.00020137,2]
[372832226,1752774658385,-1094.9,0.00020137,2]
[372832227,1752774658395,-508.86,0.00020137,2]
[372832228,1752774658406,-1962.81,0.00020137,2]
[372832229,1752774658415,-1170.98,0.00020137,2]
[372832230,1752774658424,-1549.78,0.00020137,2]
[372832231,1752774658434,-460.0,0.00020137,2]
[372832232,1752774658443,-691.92,0.00020137,2]
[372832233,1752774658453,-1202.44,0.00020137,2]
[372832234,1752774658462,-1072.3,0.00020137,2]
[372832235,1752774658475,-662.88,0.00020137,2]
[372832236,1752774658484,-742.34,0.00020137,2]
[372832237,1752774658494,-2122.81,0.00020137,2]
[372832238,1752774658504,-2313.94,0.00020137,2]
[372832239,1752774658514,-760.96,0.00020137,2]
[372832240,1752774658524,-723.58,0.00020137,2]
[372832241,1752774658533,-806.09,0.00020137,2]
[372832242,1752774658542,-519.84493682,0.00020137,2]
[372832243,1752774658554,-1682.78,0.00020137,2]
[372832244,1752774658564,-666.47,0.00020137,2]
[372832245,1752774658574,-500.0,0.00020139,2]
[372832246,1752774658583,-234.0,0.0002014,2]
[372832247,1752774658593,-168.0,0.00020155,2]
[372832248,1752774658602,-234.0,0.00020169,2]
[372832249,1752774658611,-800.0,0.00020172,2]
[372832250,1752774658621,-583.905815,0.00020187,2]
[372832251,1752774658630,-560.0,0.00020213,2]
[372832252,1752774658640,-460.0,0.00020237,2]
[372832253,1752774658650,-460.0,0.00020237,2]
[372832254,1752774658659,-460.0,0.00020237,2]
[372832255,1752774658670,-198.0,0.00020238,2]
[372832256,1752774658680,-877.0,0.00020238,2]
[372832257,1752774658689,-500.0,0.00020238,2]
[372832258,1752774658702,-728.0,0.00020238,2]
[372832259,1752774658711,-151.0,0.00020238,2]
[372832260,1752774658720,-608.802714,0.00020238,2]
[372832261,1752774658730,-608.802716,0.00020238,2]
[372832262,1752774658739,-173.209,0.00020238,2]
[372832263,1752774658748,-173.209,0.00020238,2]
[372832264,1752774658757,-151.0,0.00020238,2]
[372832265,1752774658766,-178.132362,0.00020238,2]
[372832266,1752774658775,-151.0,0.00020239,2]
[372832267,1752774658785,-151.0,0.00020239,2]
[372832268,1752774658794,-151.0,0.00020239,2]
[372832269,1752774658803,-151.0,0.00020239,2]
[372832270,1752774658813,-151.452743,0.00020239,2]
[372832271,1752774658822,-151.0,0.00020239,2]
[372832273,1752774658832,-157.972047,0.00020239,2]
[372832275,1752774658840,-167.263366,0.00020239,2]
[372832276,1752774658850,-157.972047,0.00020239,2]
[372832277,1752774658859,-167.263366,0.00020239,2]
[372832278,1752774658868,-151.0,0.00020239,2]
[372832279,1752774658877,-151.0,0.00020239,2]
[372832280,1752774658887,-151.0,0.00020239,2]
[372832281,1752774658896,-360.306224,0.00020239,2]
[372832282,1752774658908,-360.306224,0.00020239,2]
[372832283,1752774658917,-151.0,0.00020242,2]
[372832284,1752774658926,-234.0,0.00020248,2]
[372832285,1752774658936,-151.0,0.00020249,2]
[372832286,1752774658945,-286.975917,0.00020249,2]
[372832287,1752774658954,-286.975917,0.00020249,2]
[372832288,1752774658964,-211.767642,0.00020249,2]
[372832289,1752774658973,-211.767642,0.00020249,2]
[372832290,1752774658982,-151.0,0.00020249,2]
[372832291,1752774658992,-151.0,0.00020249,2]
[372832292,1752774659001,-319.5178467,0.00020258,2]
[372832293,1752774659010,-159.7589233,0.00020258,2]
[372832294,1752774659020,-159.7589235,0.00020258,2]
[372832295,1752774659029,-159.7589233,0.00020258,2]
[372832296,1752774659038,-315.689309,0.00020258,2]
[372832297,1752774659048,-159.7589233,0.00020258,2]
[372832298,1752774659057,-159.7589235,0.00020258,2]
[372832299,1752774659066,-159.7589233,0.00020258,2]
[372832300,1752774659075,-159.7589235,0.00020258,2]
[372832301,1752774659085,-159.7589233,0.00020258,2]
[372832302,1752774659094,-159.7589235,0.00020258,2]
[372832303,1752774659104,-159.7589233,0.00020258,2]
[372832304,1752774659114,-159.7589235,0.00020258,2]
[372832305,1752774659123,-159.7589233,0.00020258,2]
[372832306,1752774659132,-151.0,0.00020308,2]
[372832307,1752774659141,-151.0,0.00020308,2]
[372832308,1752774659152,-151.0,0.00020308,2]
[372832309,1752774659162,-151.0,0.00020308,2]
[372832310,1752774659171,-153.0,0.00020309,2]
[372832311,1752774659180,-153.0,0.00020309,2]
[372832312,1752774659190,-153.0,0.00020309,2]
[372832313,1752774659199,-156.4303956,0.00020309,2]
[372832314,1752774659208,-214.14433882,0.0002032,3]
[372832315,1752774659217,-153.0,0.00020331,2]
[372832316,1752774659226,-151.0,0.00020345,2]
[372832317,1752774659235,-12607.95677342,0.000204,3]
[372832318,1752774659244,-479.03,0.00020411,2]
[372832319,1752774659254,-1094.9,0.00020411,2]
[372832320,1752774659265,-508.86,0.00020411,2]
[372832321,1752774659274,-1962.81,0.00020411,2]
[372832322,1752774659284,-1170.98,0.00020411,2]
[372832323,1752774659296,-1549.78,0.00020411,2]
[372832324,1752774659306,-460.0,0.00020411,2]
[372832325,1752774659316,-691.92,0.00020411,2]
[372832326,1752774659326,-1202.44,0.00020411,2]
[372832327,1752774659335,-1072.3,0.00020411,2]
[372832328,1752774659345,-662.88,0.00020411,2]
[372832329,1752774659356,-742.34,0.00020411,2]
[372832330,1752774659366,-2122.81,0.00020411,2]
[372832331,1752774659374,-2313.94,0.00020411,2]
[372832332,1752774659385,-760.96,0.00020411,2]
[372832333,1752774659394,-723.58,0.00020411,2]
[372832334,1752774659405,-806.09,0.00020411,2]
[372832335,1752774659414,-1682.78,0.00020411,2]
[372832336,1752774659423,-666.47,0.00020411,2]
[372832337,1752774659432,-151.0,0.00020438,2]
[372832338,1752774659442,-151.0,0.00020438,2]
[372832339,1752774659451,-151.0,0.00020438,2]
[372832340,1752774659462,-151.0,0.00020438,2]
[372832341,1752774659474,-460.0,0.00020511,2]
[372832342,1752774659484,-460.0,0.00020511,2]
[372832343,1752774659493,-460.0,0.00020511,2]
[372832344,1752774659502,-877.0,0.00020512,2]
[372832345,1752774659513,-500.0,0.00020512,2]
[372832346,1752774659523,-728.0,0.00020512,2]
[372832347,1752774659534,-151.0,0.00020516,2]
[372832348,1752774659545,-581.132517,0.00020516,2]
[372832349,1752774659554,-581.132517,0.00020516,2]
[372832350,1752774659563,-151.776609,0.00020516,2]
[372832351,1752774659573,-213.261591,0.00020516,2]
[372832352,1752774659582,-234.0,0.00020535,2]
[372832353,1752774659592,-500.0,0.00020643,2]
[372832354,1752774659601,-273.198261,0.00020659,3]
[372832355,1752774659611,-479.03,0.00020685,2]
[372832356,1752774659621,-1094.9,0.00020685,2]
[372832357,1752774659630,-508.86,0.00020685,2]
[372832358,1752774659641,-1962.81,0.00020685,2]
[372832359,1752774659650,-1170.98,0.00020685,2]
[372832360,1752774659661,-1549.78,0.00020685,2]
[372832361,1752774659672,-460.0,0.00020685,2]
[372832362,1752774659681,-691.92,0.00020685,2]
[372832363,1752774659690,-1202.44,0.00020685,2]
[372832364,1752774659699,-1072.3,0.00020685,2]
[372832365,1752774659709,-26.67543687,0.00020685,2]
[372833072,1752774731104,1000.0,0.00027397,120]
[372833073,1752774813896,3000.0,0.00023,30]
[372833074,1752774873480,681.5555096,0.00016475,2]
[372833076,1752774915735,525.515233,0.00013699,2]
[372833077,1752775063722,458.83523889,0.00015742,2]
[372833078,1752775063747,10000.0,0.00015742,2]
[372833079,1752775063771,10000.0,0.00015742,2]
[372833080,1752775063794,4441.16476111,0.00015742,2]
[372833081,1752775078717,596.3610709,0.00016475,2]
[372833082,1752775084572,1244.0323406,0.000165,2]
[372833083,1752775092356,3718.44182739,0.000165,2]
[372833084,1752775092382,1281.55817261,0.000165,2]
[372833085,1752775097867,200.0,0.00016575,10]
[372833086,1752775098319,200.0,0.00016575,10]
[372833087,1752775098784,264.180493,0.00016575,10]
[372833088,1752775151383,5000.0,0.000165,2]
[372833089,1752775225538,1580.5940541,0.000165,2]
[372833090,1752775286086,521.81593702,0.00016474,2]
[372833091,1752775495579,456.58894491,0.00016471,2]
[372833092,1752775533271,1159.44289136,0.000165,2]
[372833093,1752775533297,2259.96305454,0.000165,2]
[372833095,1752775647764,1132.38176322,0.00027397,120]
[372833097,1752775703226,399.51532677,0.00016469,2]
[372833233,1752775832710,-300.0,0.00016563,2]
[372833235,1752775832720,-235.0,0.00016563,2]
[372833237,1752775832729,-1200.0,0.00016564,2]
[372833239,1752775832739,-1200.0,0.00016564,2]
[372833241,1752775832747,-519.41669154,0.00016565,3]
[372833245,1752775832774,-343.26330846,0.00016565,3]
[372833247,1752775832783,-311.59761136,0.00016565,3]
[372833249,1752775832796,-119.74238864,0.00016565,3]
[372833251,1752775832806,-215.67,0.00016565,3]
[372833253,1752775832816,-647.03,0.00016565,3]
[372833255,1752775832825,-429.64154219,0.00016567,2]
[372833505,1752775838422,-30.35845781,0.00016567,2]
[372833506,1752775838435,-460.0,0.00016567,2]
[372833507,1752775838444,-460.0,0.00016567,2]
[372833508,1752775838454,-460.0,0.00016567,2]
[372833509,1752775838464,-484.37888187,0.00016567,2]
[372833510,1752775838473,-460.0,0.00016567,2]
[372833511,1752775838483,-460.0,0.00016567,2]
[372833512,1752775838493,-460.0,0.00016567,2]
[372833513,1752775838502,-460.0,0.00016567,2]
[372833514,1752775838512,-460.0,0.00016567,2]
[372833515,1752775838522,-460.0,0.00016567,2]
[372833516,1752775838532,-460.0,0.00016567,2]
[372833517,1752775838541,-500.0,0.00016567,2]
[372833518,1752775838551,-302.43880138,0.00016567,2]
[372833519,1752775838560,-378.16618297,0.00016567,2]
[372833520,1752775838570,-500.0,0.00016567,2]
[372833521,1752775838579,-500.0,0.00016567,2]
[372833522,1752775838588,-500.0,0.00016567,2]
[372833523,1752775838597,-500.0,0.00016567,2]
[372833524,1752775838606,-500.0,0.00016567,2]
[372833525,1752775838615,-500.0,0.00016567,2]
[372833526,1752775838624,-500.0,0.00016567,2]
[372833527,1752775838633,-500.0,0.00016567,2]
[372833528,1752775838643,-439.92773954,0.00016567,2]
[372833529,1752775838655,-500.0,0.00016567,2]
[372833530,1752775838664,-500.0,0.00016567,2]
[372833531,1752775838673,-500.0,0.00016567,2]
[372833532,1752775838684,-500.0,0.00016567,2]
[372833534,1752775838694,-547.66063063,0.00016567,2]
[372833536,1752775838703,-500.0,0.00016567,2]
[372833537,1752775838712,-500.0,0.00016567,2]
[372833538,1752775838721,-500.0,0.00016567,2]
[372833539,1752775838730,-500.0,0.00016567,2]
[372833540,1752775838739,-500.0,0.00016567,2]
[372833541,1752775838748,-500.0,0.00016567,2]
[372833542,1752775838758,-500.0,0.00016567,2]
[372833543,1752775838769,-500.0,0.00016567,2]
[372833544,1752775838779,-555.04093272,0.00016567,2]
[372833545,1752775838788,-500.0,0.00016567,2]
[372833546,1752775838800,-500.0,0.00016567,2]
[372833547,1752775838813,-500.0,0.00016567,2]
[372833548,1752775838823,-500.0,0.00016567,2]
[372833549,1752775838832,-500.0,0.00016567,2]
[372833550,1752775838843,-500.0,0.00016567,2]
[372833551,1752775838852,-500.0,0.00016567,2]
[372833552,1752775838861,-500.0,0.00016567,2]
[372833553,1752775838872,-500.0,0.00016567,2]
[372833554,1752775838882,-500.0,0.00016567,2]
[372833555,1752775838896,-500.0,0.00016567,2]
[372833556,1752775838907,-500.0,0.00016567,2]
[372833557,1752775838917,-500.0,0.00016567,2]
[372833558,1752775838926,-500.0,0.00016567,2]
[372833559,1752775838938,-500.0,0.00016567,2]
[372833560,1752775838947,-500.0,0.00016567,2]
[372833561,1752775838957,-500.0,0.00016567,2]
[372833562,1752775838966,-500.0,0.00016567,2]
[372833563,1752775838976,-500.0,0.00016567,2]
[372833564,1752775838985,-500.0,0.00016567,2]
[372833565,1752775839004,-500.0,0.00016567,2]
[372833566,1752775839015,-500.0,0.00016567,2]
[372833567,1752775839025,-500.0,0.00016567,2]
[372833568,1752775839035,-500.0,0.00016567,2]
[372833569,1752775839045,-460.0,0.00016569,2]
[372833570,1752775839055,-460.0,0.00016569,2]
[372833571,1752775839065,-460.46713278,0.00016569,2]
[372833572,1752775839074,-460.0,0.00016569,2]
[372833573,1752775839084,-460.0,0.00016569,2]
[372833574,1752775839094,-465.34502743,0.00016569,2]
[372833575,1752775839104,-460.0,0.00016569,2]
[372833576,1752775839114,-460.0,0.00016569,2]
[372833577,1752775839123,-460.0,0.00016569,2]
[372833578,1752775839133,-460.0,0.00016569,2]
[372833579,1752775839143,-461.83340854,0.00016569,2]
[372833580,1752775839153,-460.0,0.00016569,2]
[372833581,1752775839163,-460.0,0.00016569,2]
[372833582,1752775839173,-460.0,0.00016569,2]
[372833583,1752775839183,-460.0,0.00016569,2]
[372833584,1752775839193,-460.0,0.00016569,2]
[372833585,1752775839203,-460.0,0.00016569,2]
[372833586,1752775839212,-1000.0,0.00016569,2]
[372833587,1752775839222,-460.0,0.00016569,2]
[372833588,1752775839231,-460.0,0.00016569,2]
[372833589,1752775839241,-460.0,0.00016569,2]
[372833590,1752775839250,-460.0,0.00016569,2]
[372833591,1752775839260,-460.0,0.00016569,2]
[372833592,1752775839270,-460.0,0.00016569,2]
[372833593,1752775839280,-460.0,0.00016569,2]
[372833594,1752775839289,-549.08311951,0.00016569,2]
[372833595,1752775839299,-460.0,0.00016569,2]
[372833596,1752775839308,-460.0,0.00016569,2]
[372833597,1752775839318,-460.0,0.00016569,2]
[372833598,1752775839327,-460.0,0.00016569,2]
[372833599,1752775839337,-460.0,0.00016569,2]
[372833600,1752775839346,-460.0,0.00016569,2]
[372833601,1752775839356,-460.0,0.00016569,2]
[372833602,1752775839365,-460.0,0.00016569,2]
[372833603,1752775839375,-460.0,0.00016569,2]
[372833604,1752775839385,-460.0,0.00016569,2]
[372833605,1752775839395,-460.0,0.00016569,2]
[372833606,1752775839406,-203.03599092,0.00016569,2]
[372833607,1752775839415,-460.48401583,0.00016571,2]
[372833608,1752775839425,-460.0,0.00016571,2]
[372833609,1752775839438,-460.0,0.00016571,2]
[372833610,1752775839448,-460.0,0.00016571,2]
[372833611,1752775839458,-460.0,0.00016571,2]